bitfinex/quotes_BTCUSD_20250523
["timestamp","ask_amount","ask_price","bid_price","bid_amount"]
[1747991760674,0.12965355,110970.0,110960.0,5.93048489]
[1747991761279,0.12965355,110970.0,110960.0,6.31924489]
[1747991763016,0.12965355,110970.0,110960.0,5.49509189]
[1747991763477,0.12965355,110970.0,110960.0,4.92209189]
[1747991763653,0.12965355,110970.0,110960.0,4.31779189]
[1747991763862,0.12965355,110970.0,110960.0,3.83569189]
[1747991764061,0.12965355,110970.0,110960.0,3.22129189]
[1747991764417,0.17096426,110970.0,110960.0,0.66733189]
[1747991764677,0.16195355,110970.0,110960.0,1.58082633]
[1747991766106,0.16195355,110970.0,110960.0,1.39156903]
[1747991766306,0.16195355,110970.0,110960.0,1.58082633]
[1747991766523,0.16195355,110970.0,110960.0,1.55232091]
[1747991768266,0.16195355,110970.0,110960.0,0.95238001]
[1747991768471,0.16195355,110970.0,110960.0,1.56670001]
[1747991768710,0.12965355,110970.0,110960.0,1.65624557]
[1747991769743,0.12965355,110970.0,110960.0,4.43213957]
[1747991769950,0.12965355,110970.0,110960.0,4.41780047]
[1747991771900,0.12965355,110970.0,110960.0,3.74393947]
[1747991772080,0.12965355,110970.0,110960.0,2.64442747]
[1747991772746,0.14565355,110970.0,110960.0,2.64442747]
[1747991774336,0.36891578,110970.0,110960.0,1.25532513]
[1747991774551,0.35990524,110970.0,110960.0,1.07508]
[1747991774735,0.35990491,110970.0,110960.0,1.55236148]
[1747991774978,0.35990491,110970.0,110960.0,1.56137333]
[1747991775404,0.35990491,110970.0,110960.0,1.57038509]
[1747991775612,0.35990491,110970.0,110960.0,1.56137333]
[1747991775975,0.17066434,110970.0,110960.0,1.57038501]
[1747991776390,0.17967529,110970.0,110960.0,1.58472152]
[1747991777186,0.1886864,110970.0,110960.0,1.58472152]
[1747991777406,0.17967529,110970.0,110960.0,1.58472152]
[1747991777619,0.18868632,110970.0,110960.0,1.57038501]
[1747991780228,0.37792649,110970.0,110960.0,1.57038501]
[1747991780383,0.37792632,110970.0,110960.0,1.57038501]
[1747991781647,0.37792632,110970.0,110960.0,1.57042501]
[1747991781865,0.35990418,110970.0,110960.0,1.57042501]
[1747991782077,0.36891529,110970.0,110960.0,1.57042501]
[1747991783097,0.36891529,110970.0,110960.0,1.58475255]
[1747991783311,0.37792657,110970.0,110960.0,1.56672902]
[1747991783748,0.38693793,110970.0,110960.0,1.56672902]
[1747991783959,0.36891529,110970.0,110960.0,1.57574103]
[1747991784159,0.36891529,110970.0,110960.0,1.58475279]
[1747991784291,0.36891529,110970.0,110960.0,1.57574103]
[1747991784488,0.37792657,110970.0,110960.0,1.57574111]
[1747991784687,0.36891529,110970.0,110960.0,1.58475239]
[1747991787174,0.36891529,110970.0,110960.0,1.57042485]
[1747991788321,0.35990418,110970.0,110960.0,1.57042485]
[1747991788520,0.36891529,110970.0,110960.0,0.93804132]
[1747991788771,0.36891529,110970.0,110960.0,1.57042476]
[1747991789412,0.36891529,110970.0,110960.0,1.56141308]
[1747991790446,0.36891529,110970.0,110960.0,1.55240132]
[1747991790799,0.36891529,110970.0,110960.0,1.56141317]
[1747991791244,0.37792649,110970.0,110960.0,1.57042493]
[1747991791932,0.36891603,110970.0,110960.0,0.91100513]
[1747991792095,0.36891603,110970.0,110960.0,1.1900573]
[1747991792301,0.37792739,110970.0,110960.0,1.5343773]
[1747991792457,0.37792739,110970.0,110960.0,1.54338939]
[1747991792873,0.37792739,110970.0,110960.0,1.5524014]
[1747991793080,0.37792739,110970.0,110960.0,1.54338939]
[1747991793280,0.37792739,110970.0,110960.0,1.5343773]
[1747991793477,0.36891628,110970.0,110960.0,1.35413225]
[1747991793694,0.36891628,110970.0,110960.0,1.34512]
[1747991794111,0.36891628,110970.0,110960.0,1.5343773]
[1747991794717,0.36891628,110970.0,110960.0,1.25532513]
[1747991794922,0.35990508,110970.0,110960.0,1.07508]
[1747991795169,0.35990508,110970.0,110960.0,1.34512]
[1747991797470,0.35990508,110970.0,110960.0,0.73076]
[1747991797910,0.35990508,110970.0,110960.0,1.34512]
[1747991798681,0.35990508,110970.0,110960.0,1.35945943]
[1747991798891,0.3508938,110970.0,110960.0,1.35945943]
[1747991799898,0.3508938,110970.0,110960.0,1.08941943]
[1747991800129,0.3508938,110970.0,110960.0,1.35945943]
[1747991800299,0.3508938,110970.0,110960.0,1.08941943]
[1747991800503,0.3508938,110970.0,110960.0,1.35945943]
[1747991800707,0.44043936,110970.0,110960.0,1.08941943]
[1747991800885,0.44043936,110970.0,110960.0,1.35945943]
[1747991801309,0.44043936,110970.0,110960.0,0.74509943]
[1747991801554,0.44043936,110970.0,110960.0,1.35945943]
[1747991803771,0.44043936,110970.0,110960.0,0.74509943]
[1747991803999,0.44043936,110970.0,110960.0,1.35945943]
[1747991805575,0.44043936,110970.0,110960.0,0.74509943]
[1747991805779,0.44043936,110970.0,110960.0,1.35945943]
[1747991811230,0.33489355,110970.0,110960.0,1.55772882]
[1747991811428,0.34390442,110970.0,110960.0,1.56674058]
[1747991811647,0.3529157,110970.0,110960.0,1.56674067]
[1747991813725,0.13866442,110970.0,110960.0,1.59205235]
[1747991813949,0.13866434,110970.0,110960.0,1.59205235]
[1747991814158,0.13866434,110970.0,110960.0,1.57771292]
[1747991818201,0.13866434,110970.0,110960.0,1.56141292]
[1747991818403,0.31889323,110970.0,110960.0,1.56141292]
[1747991818610,0.32790418,110970.0,110960.0,1.56141292]
[1747991819586,0.31889323,110970.0,110960.0,1.56141292]
[1747991819797,0.32790418,110970.0,110960.0,1.56141292]
[1747991825223,0.32790418,110970.0,110960.0,1.24476233]
[1747991825478,0.31889323,110970.0,110960.0,1.58476233]
[1747991825709,0.32790418,110970.0,110960.0,1.58476233]
[1747991825918,0.12965355,110970.0,110960.0,1.61646233]
[1747991826146,0.12965355,110970.0,110960.0,4.77538389]
[1747991826563,0.12965355,110970.0,110960.0,4.29344789]
[1747991827182,0.12823018,110970.0,110960.0,4.13045789]
[1747991827389,0.12823018,110970.0,110960.0,2.49668989]
[1747991827854,0.12823018,110970.0,110960.0,2.48235224]
[1747991832205,0.1260292,110970.0,110960.0,2.48235224]
[1747991833066,0.1260292,110970.0,110960.0,2.48219224]
[1747991841052,0.1260292,110970.0,110960.0,1.86699224]
[1747991841251,0.1260292,110970.0,110960.0,2.48119224]
[1747991841511,0.1260292,110970.0,110960.0,2.48219224]
[1747991841655,0.1260292,110970.0,110960.0,2.48419224]
[1747991842493,0.05363078,110980.0,110970.0,0.57826223]
[1747991842696,0.05363078,110980.0,110970.0,5.73234864]
[1747991842872,0.05363078,110980.0,110970.0,5.71780779]
[1747991843082,0.05363078,110980.0,110970.0,3.54798279]
[1747991844950,0.05363078,110980.0,110970.0,3.54898279]
[1747991845376,0.05363078,110980.0,110970.0,3.54798279]
[1747991845596,0.05363078,110980.0,110970.0,3.55098279]
[1747991845782,0.05363078,110980.0,110970.0,3.55298279]
[1747991847483,0.05363078,110980.0,110970.0,4.16714279]
[1747991851304,0.05363078,110980.0,110970.0,3.90988879]
[1747991852040,0.05363078,110980.0,110970.0,3.87540079]
[1747991853263,0.05363078,110980.0,110970.0,3.24634079]
[1747991853462,0.05363078,110980.0,110970.0,3.57442579]
[1747991853872,0.05363078,110980.0,110970.0,1.69184879]
[1747991854091,0.08473078,110980.0,110970.0,1.48776979]
[1747991855042,0.08473078,110980.0,110970.0,1.21780979]
[1747991855218,0.08473078,110980.0,110970.0,1.48776979]
[1747991855832,0.06873078,110980.0,110970.0,1.48776979]
[1747991856971,0.06704785,110980.0,110970.0,1.48776979]
[1747991858563,0.05194785,110980.0,110970.0,1.48776979]
[1747991859394,0.05194785,110980.0,110970.0,1.51936979]
[1747991862819,0.05194785,110980.0,110970.0,0.90540979]
[1747991863024,0.05194785,110980.0,110970.0,1.51936979]
[1747991863228,0.05114331,110980.0,110970.0,1.51936979]
[1747991864235,0.05083188,110980.0,110970.0,1.51936979]
[1747991865566,0.05083188,110980.0,110970.0,0.88930979]
[1747991865830,0.05083188,110980.0,110970.0,1.50326979]
[1747991866818,0.0484926,110980.0,110970.0,1.50326979]
[1747991867639,0.0484926,110980.0,110970.0,1.48776979]
[1747991868805,0.0484926,110980.0,110970.0,1.51876979]
[1747991870029,0.0484926,110980.0,110970.0,1.50296979]
[1747991870442,0.0484926,110980.0,110970.0,1.48776979]
[1747991875215,0.0646926,110980.0,110970.0,1.48776979]
[1747991875631,0.0484926,110980.0,110970.0,1.48776979]
[1747991876488,0.0484926,110980.0,110970.0,1.51627521]
[1747991877154,0.0484926,110980.0,110970.0,1.53247521]
[1747991878396,0.0484926,110980.0,110970.0,1.51627521]
[1747991879344,0.0484926,110980.0,110970.0,1.53287521]
[1747991881512,0.0484926,110980.0,110970.0,1.54797521]
[1747991884785,0.0484926,110980.0,110970.0,1.53287521]
[1747991885014,0.0484926,110980.0,110970.0,1.26291521]
[1747991885206,0.0484926,110980.0,110970.0,1.51627521]
[1747991885665,0.0484926,110980.0,110970.0,0.90231521]
[1747991885851,0.0636926,110980.0,110970.0,1.51615521]
[1747991886569,0.0484926,110980.0,110970.0,1.51615521]
[1747991887458,0.0484926,110980.0,110970.0,1.51611521]
[1747991889825,0.14173682,110990.0,110980.0,0.57854356]
[1747991890035,0.14173682,110990.0,110980.0,5.71808912]
[1747991890248,0.14173682,110990.0,110980.0,3.76710012]
[1747991890424,0.14173682,110990.0,110980.0,2.44703712]
[1747991890621,0.17343682,110990.0,110980.0,2.18011312]
[1747991891002,0.17343682,110990.0,110980.0,2.18111312]
[1747991892075,0.17343682,110990.0,110980.0,2.18211312]
[1747991892668,0.15813682,110990.0,110980.0,2.18211312]
[1747991892888,0.11992523,111000.0,110980.0,2.18211312]
[1747991892889,0.11992523,111000.0,110990.0,0.54722488]
[1747991893101,0.12001713,111000.0,110990.0,5.70207044]
[1747991893317,0.12001713,111000.0,110990.0,5.73241129]
[1747991894011,0.86472098,111080.0,110990.0,5.73241129]
[1747991894225,0.26126806,111050.0,111040.0,0.34]
[1747991894438,0.26126806,111050.0,111040.0,0.9638]
[1747991894648,0.26126806,111050.0,111040.0,1.15492103]
[1747991894880,0.26126806,111050.0,111040.0,1.16392671]
[1747991895099,0.18911473,111050.0,111040.0,1.16392671]
[1747991895308,0.18911473,111050.0,111040.0,1.17293231]
[1747991895784,0.20211943,111050.0,111040.0,1.19094318]
[1747991896016,0.20211943,111050.0,111040.0,1.19100139]
[1747991896252,0.02200868,111050.0,111040.0,1.1910009]
[1747991896443,0.02200868,111050.0,111040.0,1.19100041]
[1747991896910,0.03101338,111050.0,111040.0,1.19100041]
[1747991897134,0.07091817,111050.0,111040.0,1.19100041]
[1747991897360,0.04390438,111050.0,111040.0,1.19100041]
[1747991897591,0.056909,111050.0,111040.0,1.19100041]
[1747991897811,0.05616695,111050.0,111040.0,1.19100041]
[1747991898023,0.052909,111050.0,111040.0,1.19100041]
[1747991898223,0.04690438,111050.0,111040.0,1.19100041]
[1747991898438,0.05590892,111050.0,111040.0,1.19100041]
[1747991899503,0.23600797,111050.0,111040.0,1.19100041]
[1747991899716,0.04690438,111050.0,111040.0,1.19100041]
[1747991899938,0.05190868,111050.0,111040.0,1.19100041]
[1747991900369,0.24101235,111050.0,111040.0,1.19100041]
[1747991900582,0.23200773,111050.0,111040.0,1.19100041]
[1747991900795,0.23500773,111050.0,111040.0,1.19100041]
[1747991901003,0.0519086,111050.0,111040.0,1.19100041]
[1747991901281,0.06191314,111050.0,111040.0,1.19100041]
[1747991901731,0.0529086,111050.0,111040.0,1.19100041]
[1747991902149,0.06191306,111050.0,111040.0,1.19100041]
[1747991902368,0.24201211,111050.0,111040.0,1.19100041]
[1747991902771,0.25101673,111050.0,111040.0,1.18199522]
[1747991903007,0.24201211,111050.0,111040.0,1.19100041]
[1747991903265,0.24201211,111050.0,111040.0,1.18626065]
[1747991903473,0.25101673,111050.0,111040.0,0.55445019]
[1747991903729,0.25101673,111050.0,111040.0,1.17709554]
[1747991903975,0.25101673,111050.0,111040.0,1.15007924]
[1747991904213,0.25101673,111050.0,111040.0,1.15908476]
[1747991904479,0.26002144,111050.0,111040.0,1.15007932]
[1747991904749,0.26002144,111050.0,111040.0,1.1500794]
[1747991905005,0.26002209,111050.0,111040.0,0.96996413]
[1747991905246,0.26002209,111050.0,111040.0,0.96095837]
[1747991905502,0.26002209,111050.0,111040.0,0.96996413]
[1747991905697,0.26002209,111050.0,111040.0,0.96095837]
[1747991906201,0.25101771,111050.0,111040.0,0.96095837]
[1747991906413,0.24201325,111050.0,111040.0,0.96095837]
[1747991906597,0.2510182,111050.0,111040.0,0.96095837]
[1747991906971,0.24201325,111050.0,111040.0,0.96095837]
[1747991908604,0.24201325,111050.0,111040.0,0.34731837]
[1747991908837,0.24201325,111050.0,111040.0,0.96095837]
[1747991909252,0.24201325,111050.0,111040.0,0.96996413]
[1747991909877,0.24201325,111050.0,111040.0,1.15908508]
[1747991910318,0.40172969,111050.0,111040.0,0.96095837]
[1747991910750,0.23300871,111050.0,111040.0,0.96095837]
[1747991911859,0.22400392,111050.0,111040.0,0.96095837]
[1747991912302,0.22400343,111050.0,111040.0,1.15908492]
[1747991912520,0.02820438,111050.0,111040.0,1.17709554]
[1747991912742,0.02820438,111050.0,111040.0,1.17709562]
[1747991912945,0.03720892,111050.0,111040.0,1.17709562]
[1747991913168,0.21730797,111050.0,111040.0,1.18598081]
[1747991913374,0.22631267,111050.0,111040.0,1.17697562]
[1747991913575,0.21730797,111050.0,111040.0,1.18598081]
[1747991914087,0.22631267,111050.0,111040.0,1.18598081]
[1747991914289,0.21730797,111050.0,111040.0,1.18598081]
[1747991914502,0.22631259,111050.0,111040.0,1.18598081]
[1747991914724,0.03720892,111050.0,111040.0,1.18598081]
[1747991915749,0.21730797,111050.0,111040.0,1.18598081]
[1747991916117,0.02820438,111050.0,111040.0,1.18598081]
[1747991916565,0.03720892,111050.0,111040.0,1.18598081]
[1747991916764,0.02820438,111050.0,111040.0,1.18598081]
[1747991916949,0.03720892,111050.0,111040.0,1.18598081]
[1747991917155,0.23531729,111050.0,111040.0,1.17697562]
[1747991917384,0.23531729,111050.0,111040.0,1.18598081]
[1747991917583,0.21730797,111050.0,111040.0,1.18598081]
[1747991918418,0.03720892,111050.0,111040.0,1.18598081]
[1747991919091,0.04621354,111050.0,111040.0,1.18598081]
[1747991919877,0.02200892,111050.0,111040.0,1.18598081]
[1747991920495,0.03101362,111050.0,111040.0,1.18598081]
[1747991920806,0.03101354,111050.0,111040.0,1.18598081]
[1747991922301,0.24401259,111050.0,111040.0,0.56345562]
[1747991922545,0.06391354,111050.0,111040.0,1.18594081]
[1747991922773,0.03900892,111050.0,111040.0,1.18594081]
[1747991922978,0.02200892,111050.0,111040.0,1.18594081]
[1747991923180,0.03101346,111050.0,111040.0,1.18594081]
[1747991923967,0.03101346,111050.0,111040.0,0.85068057]
[1747991924409,0.21111251,111050.0,111040.0,0.85068057]
[1747991926062,0.02200884,111050.0,111040.0,1.19068057]
[1747991926200,0.03101338,111050.0,111040.0,1.19068057]
[1747991927222,0.21111243,111050.0,111040.0,1.19068057]
[1747991928321,0.22691243,111050.0,111040.0,1.19068057]
[1747991929584,0.03780884,111050.0,111040.0,1.19068057]
[1747991929796,0.02200884,111050.0,111040.0,1.19068057]
[1747991930213,0.03101346,111050.0,111040.0,1.19068057]
[1747991930419,0.02200884,111050.0,111040.0,1.19068057]
[1747991930555,0.20210789,111050.0,111040.0,1.19068057]
[1747991930965,0.20210789,111050.0,111040.0,1.19062244]
[1747991930966,0.03101338,111050.0,111040.0,1.19062244]
[1747991931177,0.02200884,111050.0,111040.0,1.19062244]
[1747991932553,0.01300438,111050.0,111040.0,1.19062244]
[1747991932766,0.02200892,111050.0,111040.0,1.19062244]
[1747991935269,0.004,111050.0,111040.0,1.59514244]
[1747991935680,0.004,111050.0,111040.0,1.57914244]
[1747991936562,0.004,111050.0,111040.0,4.46881144]
[1747991936775,0.004,111050.0,111040.0,3.99968644]
[1747991937105,0.004,111050.0,111040.0,3.54211544]
[1747991940383,0.004,111050.0,111040.0,2.77871844]
[1747991941161,0.004,111050.0,111040.0,2.56302944]
[1747991941802,0.004,111050.0,111040.0,2.50041044]
[1747991943926,0.004,111050.0,111040.0,2.46391044]
[1747991945312,0.0327773,111060.0,111050.0,0.54711292]
[1747991945541,0.0327773,111060.0,111050.0,0.55711292]
[1747991946005,0.04178119,111060.0,111050.0,0.55711292]
[1747991946211,0.0327773,111060.0,111050.0,1.17055292]
[1747991946619,0.04178119,111060.0,111050.0,1.17055292]
[1747991946901,0.02377357,111060.0,111050.0,1.17055292]
[1747991947051,0.18062157,111080.0,111060.0,0.53908656]
[1747991947052,0.19682157,111080.0,111060.0,0.53908656]
[1747991947260,0.19682157,111080.0,111070.0,0.81151303]
[1747991947468,0.22376745,111080.0,111070.0,0.61344]
[1747991948327,0.24556745,111080.0,111070.0,0.96344]
[1747991948747,0.24956745,111080.0,111070.0,0.96344]
[1747991949309,0.24956745,111080.0,111070.0,0.35]
[1747991949526,0.24781075,111080.0,111070.0,0.96344]
[1747991949719,0.22980629,111080.0,111070.0,0.6936]
[1747991949921,0.22580629,111080.0,111070.0,0.96344]
[1747991950128,0.22780629,111080.0,111070.0,0.96344]
[1747991950588,0.22380629,111080.0,111070.0,0.96344]
[1747991950906,0.22780629,111080.0,111070.0,0.96344]
[1747991951320,0.22380629,111080.0,111070.0,0.96344]
[1747991952018,0.22680629,111080.0,111070.0,0.96344]
[1747991952755,0.22680629,111080.0,111070.0,0.35]
[1747991952956,0.22680629,111080.0,111070.0,0.9634]
[1747991953702,0.21780386,111080.0,111070.0,0.9634]
[1747991953899,0.21780386,111080.0,111070.0,0.35]
[1747991954114,0.21780386,111080.0,111070.0,0.96336]
[1747991955705,0.21780386,111080.0,111070.0,1.14342662]
[1747991955908,0.21780386,111080.0,111070.0,1.15242987]
[1747991956101,0.21780386,111080.0,111070.0,1.16143303]
[1747991957427,0.04675556,111080.0,111070.0,1.16143303]
[1747991957644,0.0647597,111080.0,111070.0,1.16143303]
[1747991957848,0.05575743,111080.0,111070.0,0.56607879]
[1747991958055,0.04675532,111080.0,111070.0,1.17943879]
[1747991958273,0.04675532,111080.0,111070.0,3.29546235]
[1747991958274,0.005,111080.0,111070.0,3.29546235]
[1747991958476,0.005,111080.0,111070.0,2.39147335]
[1747991958684,0.005,111080.0,111070.0,1.00666335]
[1747991958861,0.02300398,111080.0,111070.0,0.69633563]
[1747991959090,0.02300366,111080.0,111070.0,1.05109763]
[1747991959327,0.01100179,111080.0,111070.0,1.30038763]
[1747991959543,0.002,111080.0,111070.0,1.30038763]
[1747991959785,0.19975724,111090.0,111080.0,0.54705698]
[1747991960017,0.24281192,111090.0,111080.0,0.54705698]
[1747991960250,0.24281192,111090.0,111080.0,0.54805503]
[1747991960484,0.06277768,111090.0,111080.0,0.56605909]
[1747991960745,0.05377597,111090.0,111080.0,0.56605909]
[1747991960986,0.06180316,111090.0,111080.0,0.56605909]
[1747991961219,0.07180478,111090.0,111080.0,0.56605909]
[1747991961436,0.07380478,111090.0,111080.0,1.19285909]
[1747991961660,0.04680024,111090.0,111080.0,1.19285909]
[1747991961866,0.06480292,111090.0,111080.0,1.19285909]
[1747991962305,0.0038991,111090.0,111080.0,1.83254709]
[1747991962511,0.02190122,111090.0,111080.0,1.61595709]
[1747991963764,0.01290008,111090.0,111080.0,1.61595709]
[1747991964014,0.02190122,111090.0,111080.0,1.61595709]
[1747991964203,0.01290008,111090.0,111080.0,1.61595709]
[1747991964702,0.0219013,111090.0,111080.0,1.43662809]
[1747991964929,0.01290008,111090.0,111080.0,1.43662809]
[1747991965135,0.02190122,111090.0,111080.0,1.43662809]
[1747991965554,0.0219013,111090.0,111080.0,1.43662809]
[1747991966219,0.01290008,111090.0,111080.0,1.43662809]
[1747991966428,0.02190122,111090.0,111080.0,1.43662809]
[1747991967505,0.0038991,111090.0,111080.0,1.43662809]
[1747991968100,0.0215991,111090.0,111080.0,1.42585909]
[1747991968312,0.0038991,111090.0,111080.0,1.42585909]
[1747991970212,0.0038991,111090.0,111080.0,1.4259172]
[1747991971702,0.01290008,111090.0,111080.0,1.4259172]
[1747991971874,0.0038991,111090.0,111080.0,1.4259172]
[1747991972283,0.0038991,111090.0,111080.0,1.8143572]
[1747991972800,0.01290008,111090.0,111080.0,1.8143572]
[1747991973007,0.0038991,111090.0,111080.0,1.8143572]
[1747991973206,0.01111954,111090.0,111080.0,1.8143572]
[1747991973618,0.00211856,111090.0,111080.0,1.8143572]
[1747991973910,0.00211856,111090.0,111080.0,1.1875572]
[1747991974141,0.05312092,111090.0,111080.0,1.6813802]
[1747991974684,0.07112384,111090.0,111080.0,1.6813802]
[1747991974886,0.07112432,111090.0,111080.0,1.57227525]
[1747991975094,0.0621227,111090.0,111080.0,1.5812772]
[1747991975284,0.07112432,111090.0,111080.0,1.5812772]
[1747991975483,0.0621227,111090.0,111080.0,1.5812772]
[1747991975702,0.07112432,111090.0,111080.0,1.7313402]
[1747991976108,0.07112432,111090.0,111080.0,1.5812772]
[1747991976432,0.25115852,111090.0,111080.0,1.5812772]
[1747991976661,0.26016023,111090.0,111080.0,1.57227525]
[1747991976877,0.07112432,111090.0,111080.0,1.57227525]
[1747991977082,0.05312116,111090.0,111080.0,1.5812772]
[1747991977338,0.25115869,111090.0,111080.0,1.5812772]
[1747991977964,0.07112449,111090.0,111080.0,1.5812772]
[1747991978169,0.25115869,111090.0,111080.0,1.57227525]
[1747991978750,0.03511856,111090.0,111080.0,1.57227525]
[1747991979258,0.03511856,111090.0,111080.0,1.5812772]
[1747991982270,0.00211856,111090.0,111080.0,1.5812772]
[1747991982472,0.00211856,111090.0,111080.0,1.5980772]
[1747991983063,0.00211856,111090.0,111080.0,1.5812772]
[1747991983864,0.00211856,111090.0,111080.0,3.5570032]
[1747991984279,0.00211856,111090.0,111080.0,2.7535842]
[1747991984637,0.00211856,111090.0,111080.0,2.76786829]
[1747991984875,0.00211856,111090.0,111080.0,2.43521629]
[1747991985066,0.00011856,111090.0,111080.0,2.35521629]
[1747991985266,0.07062035,111100.0,111090.0,0.20703834]
[1747991985476,0.07062035,111100.0,111090.0,0.20709645]
[1747991986214,0.00900017,111100.0,111090.0,0.20709645]
[1747991986418,0.0363996,111110.0,111100.0,0.54701971]
[1747991986587,0.12594516,111110.0,111100.0,0.81683798]
[1747991986785,0.12594516,111110.0,111100.0,0.55607831]
[1747991987039,0.12594516,111110.0,111100.0,1.17379798]
[1747991987040,0.31494696,111110.0,111100.0,1.17379798]
[1747991987216,0.002,111110.0,111100.0,1.18379798]
[1747991987415,0.002,111110.0,111100.0,1.19279831]
[1747991987638,0.004,111110.0,111100.0,1.22679831]
[1747991988756,0.007,111110.0,111100.0,1.2410824]
[1747991989500,0.01599944,111110.0,111100.0,1.2410824]
[1747991989707,0.01599936,111110.0,111100.0,1.2410824]
[1747991990110,0.007,111110.0,111100.0,1.2410824]
[1747991990990,0.01599936,111110.0,111100.0,1.24089046]
[1747991991253,0.01599936,111110.0,111100.0,1.24797046]
[1747991991458,0.007,111110.0,111100.0,1.24797046]
[1747991991879,0.01099944,111110.0,111100.0,1.24797046]
[1747991992321,0.01399944,111110.0,111100.0,1.24797046]
[1747991992700,0.005,111110.0,111100.0,1.24797046]
[1747991992901,0.01399944,111110.0,111100.0,1.24797046]
[1747991993111,0.02299896,111110.0,111100.0,1.24797046]
[1747991993313,0.01399944,111110.0,111100.0,1.24797046]
[1747991993607,0.005,111110.0,111100.0,1.24797046]
[1747991993812,0.02299888,111110.0,111100.0,1.24797046]
[1747991994320,0.005,111110.0,111100.0,1.24797046]
[1747991995061,0.01399952,111110.0,111100.0,1.24797046]
[1747991995291,0.005,111110.0,111100.0,1.24797046]
[1747991995497,0.01399952,111110.0,111100.0,1.24797046]
[1747991995721,0.01399944,111110.0,111100.0,1.24797046]
[1747991996044,0.02299896,111110.0,111100.0,1.24797046]
[1747991996257,0.02299896,111110.0,111100.0,1.23097046]
[1747991996465,0.02299896,111110.0,111100.0,1.21397046]
[1747991996878,0.02299896,111110.0,111100.0,0.58017046]
[1747991997104,0.03199856,111110.0,111100.0,1.21389046]
[1747991997345,0.04029912,111110.0,111100.0,0.55336101]
[1747991997543,0.0582988,111110.0,111100.0,1.20508191]
[1747991997766,0.04929888,111110.0,111100.0,1.19608158]
[1747991998013,0.23830052,111110.0,111100.0,1.20508207]
[1747991998237,0.22030173,111110.0,111100.0,0.5533611]
[1747991998476,0.23710173,111110.0,111100.0,1.19608183]
[1747991998751,0.23710173,111110.0,111100.0,1.2050824]
[1747991999424,0.23710173,111110.0,111100.0,1.21408289]
[1747991999650,0.23710173,111110.0,111100.0,0.58036289]
[1747991999804,0.23710173,111110.0,111100.0,1.21408289]
[1747992000056,0.23710173,111110.0,111100.0,0.5893633]
[1747992000254,0.23710173,111110.0,111100.0,1.2230833]
[1747992001252,0.22030173,111110.0,111100.0,1.2230833]
[1747992001455,0.04029993,111110.0,111100.0,1.2230833]
[1747992001845,0.22030173,111110.0,111100.0,1.21408289]
[1747992002039,0.21849406,111110.0,111100.0,1.21408289]
[1747992002710,0.20119406,111110.0,111100.0,1.2230833]
[1747992002883,0.21759406,111110.0,111100.0,1.20879921]
[1747992003671,0.21759406,111110.0,111100.0,1.20879864]
[1747992003672,0.03019169,111110.0,111100.0,1.20879864]
[1747992003881,0.01219169,111110.0,111100.0,1.24419864]
[1747992004066,0.03019113,111110.0,111100.0,1.24419864]
[1747992004307,0.03019105,111110.0,111100.0,1.22659864]
[1747992004720,0.03919097,111110.0,111100.0,1.20879864]
[1747992004850,0.03019105,111110.0,111100.0,1.20879864]
[1747992005066,0.03919097,111110.0,111100.0,1.20879864]
[1747992005263,0.03019105,111110.0,111100.0,1.20879864]
[1747992005643,0.03919097,111110.0,111100.0,1.20879864]
[1747992006246,0.21919277,111110.0,111100.0,1.1907979]
[1747992006436,0.03019105,111110.0,111100.0,1.20879864]
[1747992006592,0.03919097,111110.0,111100.0,1.20879864]
[1747992007199,0.03919097,111110.0,111100.0,1.22308273]
[1747992008190,0.03019105,111110.0,111100.0,1.22308273]
[1747992008456,0.03919097,111110.0,111100.0,1.22308273]
[1747992009277,0.22819277,111110.0,111100.0,1.2140824]
[1747992009481,0.04819097,111110.0,111100.0,1.2140824]
[1747992010049,0.0481917,111110.0,111100.0,1.2140824]
[1747992010443,0.0481917,111110.0,111100.0,1.22308273]
[1747992010640,0.2281935,111110.0,111100.0,1.22308273]
[1747992011069,0.2281935,111110.0,111100.0,1.23928273]
[1747992013066,0.03019161,111110.0,111100.0,1.25538273]
[1747992013854,0.03919161,111110.0,111100.0,1.25538273]
[1747992014078,0.03919161,111110.0,111100.0,1.2302824]
[1747992014485,0.03919161,111110.0,111100.0,1.62764273]
[1747992014704,0.03824505,111110.0,111100.0,1.62764273]
[1747992014882,0.03824505,111110.0,111100.0,1.61144273]
[1747992015116,0.22724694,111110.0,111100.0,1.61144273]
[1747992015521,0.22724694,111110.0,111100.0,1.62754273]
[1747992015724,0.22724694,111110.0,111100.0,1.61144273]
[1747992016097,0.04724514,111110.0,111100.0,1.61144273]
[1747992016502,0.02024513,111110.0,111100.0,1.61144273]
[1747992016738,0.02924505,111110.0,111100.0,1.62804273]
[1747992016947,0.02924505,111110.0,111100.0,1.61375864]
[1747992017831,0.03824505,111110.0,111100.0,1.61375864]
[1747992018032,0.21824685,111110.0,111100.0,1.61375864]
[1747992018240,0.22724694,111110.0,111100.0,1.61375864]
[1747992018445,0.2254892,111110.0,111100.0,1.59715864]
[1747992019067,0.2254892,111110.0,111100.0,1.57015741]
[1747992019322,0.21618992,111110.0,111100.0,1.55215611]
[1747992019540,0.21618992,111110.0,111100.0,1.57015749]
[1747992019763,0.01042818,111130.0,111120.0,0.59078245]
[1747992019979,0.01058101,111130.0,111120.0,2.91213901]
[1747992020190,0.01058101,111130.0,111120.0,2.66420501]
[1747992020614,0.00215283,111130.0,111120.0,2.66420501]
[1747992020828,0.00215283,111130.0,111120.0,2.66426312]
[1747992021262,0.00315283,111130.0,111120.0,1.26822012]
[1747992021472,0.00315283,111130.0,111120.0,1.90170012]
[1747992022517,0.00215283,111130.0,111120.0,1.90170012]
[1747992023563,0.00215283,111130.0,111120.0,1.90270012]
[1747992024620,0.00215283,111130.0,111120.0,1.26922012]
[1747992024821,0.00215283,111130.0,111120.0,1.90266012]
[1747992025861,0.00215283,111130.0,111120.0,1.63294012]
[1747992026078,0.00215283,111130.0,111120.0,1.90262012]
[1747992026492,0.00215283,111130.0,111120.0,1.26822012]
[1747992026699,0.00215283,111130.0,111120.0,1.90162012]
[1747992026902,0.00215283,111130.0,111120.0,1.90362012]
[1747992028144,0.00215283,111130.0,111120.0,1.90562012]
[1747992028556,0.00215283,111130.0,111120.0,1.27222012]
[1747992029374,0.00215283,111130.0,111120.0,1.90558012]
[1747992030530,0.00215283,111130.0,111120.0,1.63590012]
[1747992030746,0.00215283,111130.0,111120.0,1.89554012]
[1747992030951,0.24301706,111130.0,111120.0,0.55772371]
[1747992031168,0.234019,111130.0,111120.0,0.01405811]
[1747992031374,0.234019,111130.0,111120.0,0.64737811]
[1747992031587,0.40273998,111130.0,111120.0,0.63737811]
[1747992031801,0.40273998,111130.0,111120.0,0.36773811]
[1747992032009,0.49228554,111130.0,111120.0,0.63737811]
[1747992032444,0.49228554,111130.0,111120.0,0.63337811]
[1747992033093,0.50682639,111130.0,111120.0,0.34005811]
[1747992033318,0.67554737,111130.0,111120.0,0.36373811]
[1747992033544,0.50682639,111130.0,111120.0,0.63337811]
[1747992033802,0.59463665,111130.0,111120.0,0.36373811]